Cogmind - Beta 13 @@@ ROGUE MODE // 2024.03.22 @ 22:34:30 Player: CrossedViper Result: Destroyed by EE-ZW8(R) with Subdweller Laser Performance ------------- Evolutions (0) 0 Regions Visited (3) 600 Robots Destroyed (41) 205 Value Destroyed (1083) 1083 Prototype IDs (1) 20 Alien Tech Used (0) 0 Bonus (0) 0 TOTAL SCORE: 1908 Bonus ------- None Cogmind --------- Core Integrity 0/250 Matter 177/300 Energy 200/200 System Corruption 4% Temperature Cool (6) Movement Treading (160) Location -10/Subcaves Parts ------- > --- POWER (1) -------- Subdweller Power Source > --- PROPULSION (2) --- Spiked Treads Subdweller Monowheel > --- UTILITY (2) ------ (None) > --- WEAPON (2) ------- Slug Cannon Subdweller Shrapnel Launcher > --- INVENTORY (5) ---- Large Storage Unit Subdweller Laser Advanced Beam Cannon Advanced Beam Cannon Grenade Launcher Peak State ------------ > --- POWER ------------ Subdweller Power Source > --- PROPULSION ------- Spiked Treads Subdweller Monowheel > --- UTILITY ---------- Scrap Shield > --- WEAPON ----------- Advanced Beam Cannon Slug Cannon > --- INVENTORY -------- Large Storage Unit Advanced Beam Cannon Grenade Launcher Subdweller Shrapnel Launcher [Rating: 17] Favorites ----------- Power Subdweller Power Source Engine Subdweller Power Source Propulsion Light Treads Treads Light Treads Wheel Subdweller Monowheel Utility Small Storage Unit Device Heat Sink Storage Small Storage Unit Protection Scrap Shield Weapon Advanced Beam Cannon Energy Gun Small Laser Energy Cannon Advanced Beam Cannon Ballistic Gun Subdweller Machine Gun Ballistic Cannon Slug Cannon Launcher Subdweller Shrapnel Launcher Special Weapon Mining Laser Build | -11 -10 -10 -10 ------- Run | Yrd Mat Min Sub Slots Evolved . | . . . . Power . | . . . . Propulsion . | . . . . Utility . | . . . . Weapon . | . . . . Parts Attached 31 | 7 9 2 13 Power 4 | 1 1 . 2 Engine 4 | 1 1 . 2 Core . | . . . . Reactor . | . . . . Propulsion 7 | 2 3 . 2 Treads 6 | 2 3 . 1 Leg . | . . . . Wheel 1 | . . . 1 Hover . | . . . . Flight . | . . . . Utility 3 | 1 1 . 1 Device 1 | . 1 . . Storage 1 | 1 . . . Processor . | . . . . Hackware . | . . . . Protection 1 | . . . 1 Artifact . | . . . . Weapon 17 | 3 4 2 8 Energy Gun 3 | 3 . . . Energy Cannon 8 | . 4 1 3 Ballistic Gun 1 | . . . 1 Ballistic Cannon 1 | . . . 1 Launcher 3 | . . . 3 Special Weapon 1 | . . 1 . Impact Weapon . | . . . . Slashing Weapon . | . . . . Piercing Weapon . | . . . . Special Melee Weapon . | . . . . Unidentified Prototypes 1 | . 1 . . Parts Lost 9 | . 3 . 6 Power 2 | . 1 . 1 Propulsion 3 | . 1 . 2 Utility 2 | . . . 2 Weapon 2 | . 1 . 1 Highest Loss Streak 2 | . 1 . 2 To Critical Strikes . | . . . . Average Slot Usage (%) 88 | . 96 100 83 Engine 10 | . 14 14 8 Treads 22 | . 27 28 20 Wheel 3 | . . . 4 Device 9 | . 12 14 7 Storage 10 | . 14 14 9 Protection 3 | . . . 4 Energy Gun 1 | . 6 . . Energy Cannon 22 | . 20 25 22 Ballistic Gun 1 | . . . 1 Ballistic Cannon 2 | . . . 3 Naked Turns . | . . . . Heaviest Build 34 | 13 17 17 34 Greatest Support 40 | 40 40 40 40 Greatest Overweight (x) 1 | . . . 1 Average Overweight (x) . | . . . . Largest Inventory Capacity 8 | 8 8 8 8 Average Capacity 7 | 7 8 8 6 Most Carried 8 | 2 8 8 8 Average Carried 6 | 1 6 8 6 Final Capacity 8 | 8 8 8 5 Final Carried 8 | 2 8 8 5 Class Distribution -------------------- 97% | Mutant Dominant Class ---------------- Mutant | -10/Materials Mutant | -10/Mines Mutant | -10/Subcaves Resources | -11 -10 -10 -10 ----------- Run | Yrd Mat Min Sub Matter Collected 751 | 212 133 37 369 Remotely . | . . . . Salvage Created 1360 | . 760 39 561 Parts 65 | . 44 . 21 Haulers Intercepted 2 | . 2 . . Recyclers Shooed 2 | . 1 1 . Parts Field Recycled . | . . . . Retrieved Matter . | . . . . Parts Self-Destructed 5 | . . . 5 Prevented . | . . . . Kills | -11 -10 -10 -10 ------- Run | Yrd Mat Min Sub Combat Hostiles Destroyed 36 | . 18 4 14 Guns 8 | . 7 . 1 Cannons 22 | . 11 4 7 AOE 6 | . . . 6 Classes Destroyed 10 | . 6 1 3 Builder 2 | . 2 . . Hauler 2 | . 2 . . Operator 1 | . 1 . . Turret 2 | . . . 2 Watcher 2 | . 2 . . Swarmer 9 | . 6 . 3 Grunt 12 | . 12 . . Cobbler 1 | . . . 1 Subdweller 11 | . . . 11 Assembled 4 | . . 4 . Best Kill Streak 4 | . 4 3 4 Combat Bots Only 4 | . 4 3 4 Max Kills in Single Turn 2 | . 1 1 2 Gunslinging . | . . . . Exploded 2 | . . . 2 Melee . | . . . . Uniques/NPCs Destroyed . | . . . . Combat | -11 -10 -10 -10 -------- Run | Yrd Mat Min Sub Hostile Shots Fired 226 | . 90 10 126 Missed 82 | . 23 2 57 Damage Taken 1959 | . 664 120 1175 Core 258 | . 59 13 186 Absorbed by Shields . | . . . . Regen/Repaired (Parts) 204 | . 204 . . Core Remaining (%) 100 | 100 . . . Volleys Fired 169 | . 58 20 91 Largest 2 | . 2 2 2 Hottest 136 | . 136 136 136 Shots Fired 304 | . 118 31 155 Gun 58 | . 53 . 5 Cannon 229 | . 65 22 142 Launcher 8 | . . . 8 Special 9 | . . 9 . Kinetic 28 | . . . 28 Thermal 275 | . 118 31 126 Explosive 1 | . . . 1 Electromagnetic . | . . . . Robot Hit Streak 11 | . 11 4 10 Robot Miss Streak 4 | . 4 2 3 Penetration Max . | . . . . Secondary Targets . | . . . . Shots Hit Robots 161 | . 72 12 77 Core Hits 76 | . 36 4 36 Critical Kills . | . . . . Critical Parts Destroyed 1 | . . . 1 Critical Strikes 2 | . . . 2 Destroy 2 | . . . 2 Melee Attacks . | . . . . Impact . | . . . . Slashing . | . . . . Piercing . | . . . . Sneak Attacks . | . . . . Combat Hostiles . | . . . . Follow-up Attacks . | . . . . Damage Inflicted 3881 | . 1222 248 2411 Guns 531 | . 427 . 104 Cannons 2347 | . 756 248 1343 Explosions 964 | . . . 964 Melee . | . . . . Ramming 39 | . 39 . . Kinetic 1056 | . . . 1056 Thermal 2638 | . 1183 248 1207 Explosive 148 | . . . 148 Electromagnetic . | . . . . Impact . | . . . . Slashing . | . . . . Piercing . | . . . . Highest Corruption 4 | . 4 4 4 Average Corruption 3 | . 2 4 4 Corruption Purged . | . . . . Corruption Blocked . | . . . . Effects 103 | . 18 5 80 Message Errors 21 | . 1 . 20 Matter Fused 22 | . 5 1 16 Heat Flow Errors 11 | . 2 . 9 Energy Discharges 15 | . 3 2 10 Data Loss (minor) 17 | . 2 2 13 Data Loss (major) 4 | . 2 . 2 Misfires 8 | . 3 . 5 Alerts 3 | . . . 3 Weapon Failures 2 | . . . 2 Overload Shots . | . . . . Overflow Damage 72 | . . 1 71 Projectiles 48 | . . 1 47 Explosions 24 | . . . 24 Melee . | . . . . Knockbacks 3 | . 1 . 2 Impact 1 | . 1 . . Kinetic 2 | . . . 2 Secondary . | . . . . Self-Inflicted Damage 69 | . . . 69 Shots 5 | . . . 5 Rammed 8 | . 8 . . Targets Rammed 9 | . 9 . . Kicked . | . . . . Crushed 1 | . 1 . . Highest Temperature 285 | . 268 285 238 Average Temperature 84 | . 75 132 82 Received Heat Transfer 396 | . 216 . 180 Effects 1 | . 1 . . Interference 1 | . 1 . . Siege Activations . | . . . . Robots Corrupted . | . . . . Combat Hostiles . | . . . . Parts Fried . | . . . . Impact Corruptions . | . . . . Robots Melted . | . . . . Combat Hostiles . | . . . . Parts Melted 8 | . 7 . 1 Heat Transferred 5017 | . 2390 444 2183 Parts Sabotaged . | . . . . Parts Stolen . | . . . . Parts Stripped . | . . . . Power Chain Reactions . | . . . . Alert | -11 -10 -10 -10 ------- Run | Yrd Mat Min Sub Peak Influence 371 | . 371 112 . Initial 112 | . . 112 . Average 219 | . 251 112 . Maximum Alert Level 1 | . 1 . . Low Security (%) 31 | 100 15 100 . Level 1 68 | . 84 . . Level 2 . | . . . . Level 3 . | . . . . Level 4 . | . . . . Level 5 . | . . . . High Security . | . . . . Max Security . | . . . . Squads Dispatched 5 | . 5 . . Investigation 4 | . 4 . . Extermination . | . . . . Reinforcement 1 | . 1 . . Assault . | . . . . Garrison . | . . . . Intercept . | . . . . Searches Triggered . | . . . . Construction Impeded . | . . . . Haulers Reinforced . | . . . . Active Scanning Responses . | . . . . Cargo Convoy Interrupts . | . . . . Stealth | -11 -10 -10 -10 --------- Run | Yrd Mat Min Sub Distress Signals 3 | . 3 . . Communications Jammed . | . . . . Distress Signals . | . . . . Times Spotted 71 | . 31 5 35 Peak Tracking Total 6 | . 5 2 6 Tactical Retreats 9 | . 2 1 6 Traps | -11 -10 -10 -10 ------- Run | Yrd Mat Min Sub Traps Triggered 2 | . 2 . . Indirectly . | . . . . Trap Hack Attempts . | . . . . Triggered . | . . . . Disarmed . | . . . . Reprogrammed . | . . . . Reused . | . . . . Traps Extracted . | . . . . Installed . | . . . . Triggered . | . . . . Machines | -11 -10 -10 -10 ---------- Run | Yrd Mat Min Sub Machines Disabled 3 | . 1 . 2 Max in Single Turn 1 | . 1 . 1 Machines Repaired . | . . . . Machines Dismantled . | . . . . Machines Sabotaged . | . . . . Overloaded Fab Kills . | . . . . Hacking | -11 -10 -10 -10 --------- Run | Yrd Mat Min Sub Machines Accessed 11 | . 10 . 1 Terminals 7 | . 7 . . Fabricators . | . . . . Repair Stations 1 | . 1 . . Recycling Units 2 | . 2 . . Scanalyzers . | . . . . Garrison Access . | . . . . Total Hacks 41 | . 40 . 1 Successful 22 | . 21 . 1 Failed 18 | . 18 . . Catastrophic 6 | . 6 . . Database Lockouts 1 | . 1 . . Manual 22 | . 22 . . Terminals 32 | . 32 . . Fabricators . | . . . . Repair Stations 6 | . 6 . . Recycling Units 2 | . 2 . . Scanalyzers . | . . . . Garrison Access . | . . . . Terminal Hacks 12 | . 11 . 1 Record 1 | . . . 1 Robot Analysis 2 | . 2 . . Branch Access Points 1 | . 1 . . Recycling Unit Index 1 | . 1 . . Locate Traps 1 | . 1 . . Transport Status 1 | . 1 . . Hauler Manifests 1 | . 1 . . Registered Components 1 | . 1 . . Zone Layout 3 | . 3 . . Fabricator Hacks . | . . . . Repair Station Hacks 6 | . 6 . . Scan Component 3 | . 3 . . Repair 3 | . 3 . . Recycling Unit Hacks . | . . . . Scanalyzer . | . . . . Garrison Access Hacks . | . . . . Unauthorized Hacks 4 | . 4 . . Terminals 2 | . 2 . . Botnet 2 | . 2 . . Fabricators . | . . . . Repair Stations . | . . . . Recycling Units 2 | . 2 . . Tunnel 2 | . 2 . . Scanalyzers . | . . . . Garrison Access . | . . . . Data Cores Recovered 1 | . 1 . . Used 1 | . 1 . . Hacking Detections 7 | . 7 . . Full Trace Events 2 | . 2 . . Feedback Events 1 | . 1 . . Corruption 1 | . 1 . . Feedback Blocked . | . . . . Robot Schematics Acquired . | . . . . Robots Built . | . . . . Authchips . | . . . . Time . | . . . . Total Robot Build Rating . | . . . . Part Schematics Acquired . | . . . . Parts Built . | . . . . Authchips . | . . . . Time . | . . . . Total Part Build Rating . | . . . . Parts Repaired 3 | . 3 . . Time 103 | . 103 . . Parts Recycled . | . . . . Recycled Matter . | . . . . Retrieved Matter . | . . . . Retrieved Components . | . . . . Parts Scanalyzed . | . . . . Part Schematics Acquired . | . . . . Parts Damaged . | . . . . Bothacking | -11 -10 -10 -10 ------------ Run | Yrd Mat Min Sub Used RIF Installer . | . . . . Robots Hacked . | . . . . Non-combat . | . . . . Combat . | . . . . Robot Hacks Applied . | . . . . Relay Couplers Released . | . . . . Fabnet Peak Effective % . | . . . . Robots Rewired . | . . . . Allies Hacked . | . . . . Hacks Repelled . | . . . . Allies | -11 -10 -10 -10 -------- Run | Yrd Mat Min Sub Total Allies . | . . . . Largest Group . | . . . . Highest-Rated Group . | . . . . Highest-Rated Ally . | . . . . Total Orders . | . . . . Ally Attacks . | . . . . Total Damage . | . . . . Kills . | . . . . Allies Corrupted . | . . . . Allies Melted . | . . . . Intel | -11 -10 -10 -10 ------- Run | Yrd Mat Min Sub Robot Analysis Total 2 | . 2 . . Derelict Logs Recovered 2 | . . 1 1 Drone Launches . | . . . . Drone Recoveries . | . . . . Exploration | -11 -10 -10 -10 ------------- Run | Yrd Mat Min Sub Turns Passed 5412 | 98 1547 261 3506 Spaces Moved 2312 | 57 717 90 1448 Core 4 | 4 . . . Treads 2307 | 53 717 90 1447 Legs . | . . . . Wheels 1 | . . . 1 Hover . | . . . . Flight . | . . . . Fastest Speed 50 | 50 160 160 120 Average Speed 177 | 152 160 160 188 Slowest Speed 260 | 160 160 160 260 Overloaded Moves . | . . . . Propulsion Burnouts . | . . . . Robots Hopped . | . . . . Cave-ins Triggered . | . . . . Exploration Rate (%) 50 | 4 92 22 85 Regions Visited 3 Branch Regions 2 Pre-discovered Areas 3 | . 2 . 1 Known Exits Taken 1 | . 1 . . Unknown Exits Taken 2 | 1 . 1 . Scrap Searched 1 | . . . 1 Spaces Dug 14 | . . 1 13 Terrain Destroyed 117 | . . 2 115 Melee . | . . . . Projectile 28 | . . 2 26 AOE 89 | . . . 89 Terrain Rammed . | . . . . Walls Destroyed . | . . . . Machines Disabled . | . . . . Actions | -11 -10 -10 -10 --------- Run | Yrd Mat Min Sub Total 3288 | 65 995 158 2070 Wait 735 | . 192 45 498 Move 2309 | 56 716 89 1448 Hop . | . . . . Pick Up 17 | 2 9 . 6 Fast Attach 20 | 6 6 2 6 Attach 5 | . 3 . 2 Detach . | . . . . Swap 6 | 1 . . 5 Drop 13 | . 2 2 9 Fire 169 | . 58 20 91 Melee . | . . . . Ram . | . . . . Kick . | . . . . Crush 9 | . 9 . . Escape Stasis . | . . . . Rewire . | . . . . Trap . | . . . . Miscellaneous 5 | . . . 5 Route ------- -11/Scrapyard -10/Materials (discovered 5 exits: [*Mat x3] / *Min x2) -10/Mines -10/Subcaves (discovered 3 exits: [*Mat x2] / *Rec) History --------- Turn | Location | Event 5 | -11/Scrapyard | Discovered new exit (range 16) 99 | -11/Scrapyard | Entered Materials 117 | -10/Materials | Discovered new exit (range 5) 311 | -10/Materials | Build established: Mutant 395 | -10/Materials | Identified exit to Mines 400 | -10/Materials | Discovered new exit (range 5) 692 | -10/Materials | Discovered new exit (range 18) 848 | -10/Materials | Central database locked down 908 | -10/Materials | Discovered new exit (range 15) 1530 | -10/Materials | Repaired Lgt. Treads 1557 | -10/Materials | Repaired Lgt. Treads 1610 | -10/Materials | Repaired Adv. Beam Cannon 1646 | -10/Materials | Entered Mines 1647 | -10/Mines | Assembled infested the area 1773 | -10/Mines | Learned Materials security intel 1886 | -10/Mines | Discovered new exit (range 3) 1907 | -10/Mines | Entered Subcaves 1908 | -10/Subcaves | Shifting Twisted Machinery released Battle Rifle 2452 | -10/Subcaves | Discovered new exit (range 13) 2719 | -10/Subcaves | Learned location of Zion (-6) 2719 | -10/Subcaves | Met a Zionite searching for "candidates" 2719 | -10/Subcaves | Identified exit to Recycling 2751 | -10/Subcaves | Discovered new exit (range 7) 2804 | -10/Subcaves | Visited Clippyterm 3137 | -10/Subcaves | Shifting Twisted Machinery released Flamer 3150 | -10/Subcaves | Shifting Twisted Machinery released Barrage Gun 3228 | -10/Subcaves | Shifting Twisted Machinery released Sub. Power Source 3380 | -10/Subcaves | Core integrity fell below 50% 4580 | -10/Subcaves | Shifting Twisted Machinery released Slug Cannon 5055 | -10/Subcaves | Core integrity fell below 20% 5072 | -10/Subcaves | Ambushed by Subdweller buried in earth 5413 | -10/Subcaves | Destroyed by EE-ZW8(R) with Subdweller Laser Last Messages --------------- 05151_ Acquired 39 matter. 05156_ Destroyed Unknown Energy Gun. 05159_ Autobeam Turret destroyed. 05165_ Acquired 18 matter. 05168_ Acquired 14 matter. 05170_ CSTRJDGI0CDE2CG9VEMKG6IYTQWEM>|SWA327/A 05186_ Acquired 13 matter. 05191_ Acquired 31 matter. 05214_ Acquired 50 matter. 05220_ Acquired Sub. Power Source. 05229_ Acquired Sub. Laser. 05233_ Scrap Shield Fragment affixed to Scrap Shield (+11). 05234_ Acquired 4 matter. 05289_ System corrupted: Energy discharge (-60). 05306_ System corrupted: Component data lost. 05383_ 53-WBA(R) destroyed. 05383_ Scrap Shield destroyed. 05383_ HT-651(R) destroyed. 05397_ System corrupted: Component data lost. Map ----- +----------------------------------------------------+ | ??????????????????????????????????????????????? | | ??????????????????????????????????????????????? | | ??????????????????????????????????????????????? | | ??????????????????????????????????????????????? | | ??????????????????????????????????????????????? | | ??????????????????????????????????????????????? | | ??????????????????????????????????????????????? | | ??????????????????????????????????????????????? | | ??????????????????????????????????????????????? | | ??????????????????????????????????????????????? | | ?????????????????????????????? ??????????????? | | ?????????????????????##?#####? #?????????????? | | ?????????????????????? ## # #?????????????? | | ?????????????????????? ? ??????????????? | | ??????????????????????? ? ??????????????? | | ???????????????????????? #? ???????????????? | | ???????????????# ??##### #? ##??????????????? | | ??????????????## ## " "##" #??????????????? | | ?????????????#? " """""""" #??????????????? | | ?????????????# " """" " ##?????????????? | | ?????????????## ????## ;#?????????????? | | ?????????????# ##??#;; ;#?????????????? | | ?????????????# ###; ##?????????????? | | ?????????????# # #??????????????? | | ?????????????## [ ;#??????????????? | | ?????????????# # @ #??????????????? | | ???????????????#### #??????????????? | | ??????????????????#" ; #??????????????? | | ??????????????????## ##??????????????? | | ????"""????????????# ##???????????????? | | ????? ?????###??## #????????????????? | | ??????" ??### ### ##????????????????? | | ?????? " ## ;; #????????????????? | | ?????? " R ;# ######????????????????? | | ????????#"" #????????????????????? | | ????????### #????????????????????? | | ??????????## #????????????????????? | | ???????????# ##????????????????????? | | ??????????## ##?????????????????????? | | ?????????## ##??????????????????????? | | ?????????# #???????????????????????? | | ?????????# ####????????????????????? | | ?????????##### ###??????????????????? | | ?????????????## ##?????????????????? | | ??????????????## #?????????????????? | | ???????????????## ## ##?????????????????? | | ????????????????## ##?###??????????????????? | | ????????????????## #???????????????????????? | | ????????????????# ##??????????????????????? | | ????????????????# #####??????????????????? | +----------------------------------------------------+ Best States ------------- Heat Dissipation 35 Energy Generation 15 Energy Capacity 250 Matter Stores 300 Matter Capacity 300 Sight Range 16 Terrain Scan Density 10 Armor Coverage 800 Evasion (%) 40 Recoil Reduction 2 Item Schematics ----------------- None Robot Schematics ------------------ None Fabricated ------------ Nothing Alien Tech Used ----------------- None Achievements -------------- None Challenges ------------ None Game ------ Seed SpreadArmoredRegenerator Manual? 0 Play Time 00:22:34 Cumulative 741.1 hours Start 2024.03.22 @ 22:10:22 End 2024.03.22 @ 22:34:30 Sessions 1 Manual Loads 0 Difficulty Rogue Special Mode None Game No. 482 Rogue 475 Adventurer 0 Explorer 7 Win Type - Total 54 Types 20/5/19/2/0/1/5/1/1 Lore% 86 Gallery% 95 Achievement% 83 Wizard Run 0 Options --------- Layout 2 ASCII 0 Keyboard 0 Movement Numpad Keybinds 0 Fullscreen 1 Font 24/Tamsyn Map View 50x44 Zoom Use 0% Tactical HUD 1 Map Filters NONE Filters NONE Steam 1 RUN: 55dff448-bde2-421d-b72c-f6e1f9f1bc9d